Cogmind - Beta 10.2 @@@ ROGUE MODE // 2021.08.12 @ 16:58:47 Player: thingamajigger Result: Destroyed by D-53 Grenadier with Mini Grenade Launcher Performance ------------- Evolutions (0) 0 Regions Visited (2) 400 Robots Destroyed (20) 100 Value Destroyed (361) 361 Prototype IDs (0) 0 Alien Tech Used (0) 0 Bonus (0) 0 TOTAL SCORE: 861 Bonus ------- None Cogmind --------- Core Integrity 0/250 Matter 221/300 Energy 87/100 System Corruption 0% Temperature Cool (0) Movement Treading (200) Ox2 Location -10/Mines Parts ------- > --- POWER (1) -------- (None) > --- PROPULSION (2) --- Light Treads > --- UTILITY (2) ------ Large Storage Unit High-capacity Storage Unit > --- WEAPON (2) ------- Assault Rifle Assault Rifle > --- INVENTORY (18) --- Ion Engine Light Treads Light Treads High-capacity Matter Pod (200) Light Armor Plating Light Armor Plating Light Armor Plating Assault Rifle Light Assault Rifle Light Assault Rifle Heavy Assault Rifle Grenade Launcher Grenade Launcher Hammer Peak State ------------ > --- POWER ------------ Light Ion Engine > --- PROPULSION ------- Light Treads Light Treads > --- UTILITY ---------- Large Storage Unit High-capacity Storage Unit > --- WEAPON ----------- Light Assault Rifle Grenade Launcher > --- INVENTORY -------- Ion Engine Light Treads Assault Rifle Assault Rifle Assault Rifle Assault Rifle Assault Rifle Light Assault Rifle Grenade Launcher Hammer [Rating: 8] Favorites ----------- Power Light Ion Engine Engine Light Ion Engine Propulsion Light Treads Treads Light Treads Utility Large Storage Unit Storage Large Storage Unit Weapon Light Assault Rifle Energy Gun Small Laser Ballistic Gun Light Assault Rifle Launcher Grenade Launcher Build | -11 -10 -10 ------- Run | Scr Mat Min Slots Evolved . | . . . Power . | . . . Propulsion . | . . . Utility . | . . . Weapon . | . . . Parts Attached 18 | 7 5 6 Power 1 | 1 . . Engine 1 | 1 . . Core . | . . . Reactor . | . . . Propulsion 3 | 2 1 . Treads 3 | 2 1 . Leg . | . . . Wheel . | . . . Hover . | . . . Flight . | . . . Utility 4 | 2 2 . Device . | . . . Storage 4 | 2 2 . Processor . | . . . Hackware . | . . . Protection . | . . . Artifact . | . . . Weapon 10 | 2 2 6 Energy Gun 1 | 1 . . Energy Cannon . | . . . Ballistic Gun 7 | 1 1 5 Ballistic Cannon . | . . . Launcher 2 | . 1 1 Special Weapon . | . . . Impact Weapon . | . . . Slashing Weapon . | . . . Piercing Weapon . | . . . Special Melee Weapon . | . . . Unidentified Prototypes . | . . . Parts Lost 5 | . . 5 Power 1 | . . 1 Propulsion 1 | . . 1 Utility . | . . . Weapon 3 | . . 3 Highest Loss Streak 5 | . . 5 Average Slot Usage (%) 99 | . 100 97 Engine 13 | . 14 12 Treads 27 | . 28 27 Storage 28 | . 28 28 Energy Gun 1 | . 3 . Ballistic Gun 19 | . 19 19 Launcher 6 | . 4 8 Naked Turns . | . . . Heaviest Build 55 | 13 55 55 Greatest Support 40 | 40 40 40 Greatest Overweight (x) 2 | . 1 2 Average Overweight (x) . | . . 1 Largest Inventory Capacity 18 | 8 18 18 Average Capacity 15 | 6 14 18 Most Carried 18 | 1 13 18 Average Carried 9 | . 5 16 Final Capacity 18 | 8 18 18 Final Carried 14 | 1 13 14 Class Distribution -------------------- 100% | Mutant Dominant Class ---------------- Mutant | -10/Materials Mutant | -10/Mines Resources | -11 -10 -10 ----------- Run | Scr Mat Min Matter Collected 709 | 272 145 292 Remotely . | . . . Salvage Created 615 | 99 233 283 Parts 29 | 3 22 4 Haulers Intercepted 1 | . 1 . Recyclers Shooed 1 | . 1 . Parts Field Recycled . | . . . Retrieved Matter . | . . . Parts Self-Destructed . | . . . Prevented . | . . . Kills | -11 -10 -10 ------- Run | Scr Mat Min Combat Hostiles Destroyed 23 | . 10 13 Guns 11 | . 7 4 AOE 12 | . 3 9 Classes Destroyed 9 | 1 6 2 Worker 1 | . 1 . Builder 1 | . 1 . Hauler 1 | . 1 . Recycler 2 | 1 . 1 Watcher 1 | . 1 . Swarmer 9 | . 9 . Grunt 4 | . 1 3 Demolisher 1 | . . 1 Assembled 9 | . . 9 Best Kill Streak 9 | 1 4 9 Combat Bots Only 9 | . 4 9 Max Kills in Single Turn 5 | 1 2 5 Gunslinging . | . . . Exploded 5 | . 2 5 Melee . | . . . Uniques/NPCs Destroyed . | . . . Combat | -11 -10 -10 -------- Run | Scr Mat Min Damage Taken 1117 | . 398 719 Core 276 | . 94 182 Absorbed by Shields . | . . . Core Remaining (%) 100 | 100 . . Volleys Fired 64 | 2 47 15 Largest 2 | 2 2 2 Hottest 60 | 60 60 40 Shots Fired 115 | 4 84 27 Gun 105 | 4 77 24 Cannon . | . . . Launcher 10 | . 7 3 Special . | . . . Kinetic 75 | 2 49 24 Thermal 30 | 2 28 . Explosive 10 | . 7 3 Electromagnetic . | . . . Robot Hit Streak 9 | 4 6 9 Robot Miss Streak 6 | . 6 5 Penetration Max . | . . . Secondary Targets 2 | . 1 1 Max Gunslinging Chain 1 | . 1 1 Shots Hit Robots 65 | 4 44 17 Core Hits 55 | 2 22 31 Critical Hits 1 | . 1 . Critical Kills . | . . . Critical Parts Destroyed 1 | . 1 . Melee Attacks . | . . . Impact . | . . . Slashing . | . . . Piercing . | . . . Sneak Attacks . | . . . Combat Hostiles . | . . . Follow-up Attacks . | . . . Damage Inflicted 1609 | 39 888 682 Guns 638 | 39 375 224 Cannons . | . . . Explosions 971 | . 513 458 Melee . | . . . Ramming . | . . . Kinetic 440 | 18 198 224 Thermal 442 | 21 421 . Explosive 727 | . 269 458 Electromagnetic . | . . . Impact . | . . . Slashing . | . . . Piercing . | . . . Highest Corruption . | . . . Average Corruption . | . . . Corruption Purged . | . . . Overload Shots . | . . . Overflow Damage 113 | . 113 . Projectiles . | . . . Explosions 113 | . 113 . Melee . | . . . Knockbacks . | . . . Impact . | . . . Kinetic . | . . . Secondary . | . . . Self-Inflicted Damage 114 | . 107 7 Shots 5 | . 4 1 Rammed . | . . . Targets Rammed . | . . . Kicked . | . . . Crushed . | . . . Highest Temperature 60 | 20 60 10 Average Temperature 22 | 15 24 3 Received Heat Transfer 91 | . . 91 Siege Activations . | . . . Robots Corrupted . | . . . Combat Hostiles . | . . . Parts Fried . | . . . Impact Corruptions . | . . . Robots Melted . | . . . Combat Hostiles . | . . . Parts Melted . | . . . Heat Transferred 650 | 50 600 . Parts Sabotaged . | . . . Parts Stolen . | . . . Parts Stripped . | . . . Power Chain Reactions . | . . . Missiles Intercepted . | . . . Alert | -11 -10 -10 ------- Run | Scr Mat Min Peak Influence 267 | 5 267 85 Initial 30 | . 3 30 Average 81 | 1 109 48 Maximum Alert Level 1 | . 1 . Low Security (%) 89 | 100 81 100 Level 1 10 | . 18 . Level 2 . | . . . Level 3 . | . . . Level 4 . | . . . Level 5 . | . . . High Security . | . . . Max Security . | . . . Squads Dispatched 1 | . 1 . Investigation . | . . . Extermination . | . . . Reinforcement 1 | . 1 . Assault . | . . . Garrison . | . . . Intercept . | . . . Construction Impeded . | . . . Haulers Reinforced . | . . . Stealth | -11 -10 -10 --------- Run | Scr Mat Min Distress Signals 3 | . 3 . Communications Jammed . | . . . Distress Signals . | . . . Times Spotted 52 | . 24 28 Peak Tracking Total 20 | . 5 20 Tactical Retreats 3 | . 2 1 Traps | -11 -10 -10 ------- Run | Scr Mat Min Traps Triggered 1 | . 1 . Indirectly . | . . . Trap Hack Attempts . | . . . Triggered . | . . . Disarmed . | . . . Reprogrammed . | . . . Reused . | . . . Traps Extracted . | . . . Installed . | . . . Triggered . | . . . Machines | -11 -10 -10 ---------- Run | Scr Mat Min Machines Disabled 2 | . 2 . Max in Single Turn 2 | . 2 . Machines Sabotaged . | . . . Garrisons Compromised . | . . . Overloaded Fab Kills . | . . . Fab Network Shutdowns . | . . . Hacking | -11 -10 -10 --------- Run | Scr Mat Min Machines Accessed 2 | . 2 . Terminals 2 | . 2 . Fabricators . | . . . Repair Stations . | . . . Recycling Units . | . . . Scanalyzers . | . . . Garrison Access . | . . . Total Hacks 6 | . 6 . Successful 3 | . 3 . Failed 3 | . 3 . Catastrophic . | . . . Database Lockouts . | . . . Manual 6 | . 6 . Terminals 6 | . 6 . Fabricators . | . . . Repair Stations . | . . . Recycling Units . | . . . Scanalyzers . | . . . Garrison Access . | . . . Terminal Hacks 1 | . 1 . Terminal Index 1 | . 1 . Fabricator Hacks . | . . . Repair Station Hacks . | . . . Recycling Unit Hacks . | . . . Scanalyzer . | . . . Garrison Access Hacks . | . . . Unauthorized Hacks 2 | . 2 . Terminals 2 | . 2 . Track 1 | . 1 . Operators 1 | . 1 . Fabricators . | . . . Repair Stations . | . . . Recycling Units . | . . . Scanalyzers . | . . . Garrison Access . | . . . Data Cores Recovered . | . . . Used . | . . . Hacking Detections 2 | . 2 . Full Trace Events . | . . . Feedback Events . | . . . Feedback Blocked . | . . . Robot Schematics Acquired . | . . . Robots Built . | . . . Matter . | . . . Time . | . . . Total Robot Build Rating . | . . . Part Schematics Acquired . | . . . Parts Built . | . . . Matter . | . . . Time . | . . . Total Part Build Rating . | . . . Parts Repaired . | . . . Time . | . . . Parts Recycled . | . . . Recycled Matter . | . . . Retrieved Matter . | . . . Retrieved Components . | . . . Parts Scanalyzed . | . . . Part Schematics Acquired . | . . . Parts Damaged . | . . . Bothacking | -11 -10 -10 ------------ Run | Scr Mat Min Used RIF Installer . | . . . Robots Hacked . | . . . Non-combat . | . . . Combat . | . . . Robot Hacks Applied . | . . . Relay Couplers Released . | . . . Robots Rewired . | . . . Allies Hacked . | . . . Hacks Repelled . | . . . Allies | -11 -10 -10 -------- Run | Scr Mat Min Total Allies 3 | . . 3 Largest Group 3 | . . 3 Highest-Rated Group 40 | . . 40 Highest-Rated Ally 16 | . . 16 Total Orders 1 | . . 1 STAY 1 | . . 1 Ally Attacks 6 | . . 6 Total Damage 72 | . . 72 Kills 1 | . . 1 Allies Corrupted . | . . . Allies Melted . | . . . Intel | -11 -10 -10 ------- Run | Scr Mat Min Robot Analysis Total . | . . . Derelict Logs Recovered 2 | . . 2 Drone Launches . | . . . Drone Recoveries . | . . . Exploration | -11 -10 -10 ------------- Run | Scr Mat Min Turns Passed 1739 | 98 1007 634 Spaces Moved 850 | 53 488 309 Core 3 | 3 . . Treads 847 | 50 488 309 Legs . | . . . Wheels . | . . . Hover . | . . . Flight . | . . . Fastest Speed 50 | 50 160 180 Average Speed 174 | 153 172 180 Slowest Speed 200 | 160 180 200 Overloaded Moves . | . . . Propulsion Burnouts . | . . . Robots Hopped . | . . . Cave-ins Triggered . | . . . Exploration Rate (%) 48 | 3 86 55 Regions Visited 2 Branch Regions 1 Pre-discovered Areas . | . . . Known Exits Taken . | . . . Unknown Exits Taken 2 | 1 1 . Scrap Searched 1 | . . 1 Spaces Dug . | . . . Terrain Destroyed 49 | . 32 17 Melee . | . . . Projectile . | . . . AOE 49 | . 32 17 Terrain Rammed . | . . . Walls Destroyed . | . . . Machines Disabled . | . . . Actions | -11 -10 -10 --------- Run | Scr Mat Min Total 1000 | 63 576 361 Wait 44 | 1 22 21 Move 848 | 52 487 309 Hop . | . . . Pick Up 20 | 1 12 7 Fast Attach 10 | 7 3 . Attach 4 | . . 4 Detach . | . . . Swap 4 | . 2 2 Drop 6 | . 3 3 Fire 64 | 2 47 15 Melee . | . . . Ram . | . . . Kick . | . . . Crush . | . . . Escape Stasis . | . . . Rewire . | . . . Trap . | . . . Miscellaneous . | . . . Route ------- -11/Scrapyard -10/Materials (discovered 3 exits: *Mat x2 / [*Min]) -10/Mines (discovered 2 exits: *Mat x2) History --------- Turn | Location | Event 6 | -11/Scrapyard | Discovered new exit (range 16) 99 | -11/Scrapyard | Entered Materials 315 | -10/Materials | Build established: Mutant 393 | -10/Materials | Discovered new exit (range 7) 598 | -10/Materials | Discovered new exit (range 7) 832 | -10/Materials | Discovered new exit (range 12) 1106 | -10/Materials | Entered Mines 1114 | -10/Mines | Assisted by bots powering up and referring to "LRC-V3" 1187 | -10/Mines | Identified exit to Materials 1232 | -10/Mines | Joined a pair of Derelicts in attacking an 0b10 outpost 1495 | -10/Mines | Discovered exit to Materials (range 3) 1511 | -10/Mines | Learned Materials garrison access intel 1675 | -10/Mines | Assembled infested the area 1680 | -10/Mines | Assisted by a Guerilla fighting off Assembled 1720 | -10/Mines | Destroyed 9 combat bots 1729 | -10/Mines | Core integrity fell below 50% 1737 | -10/Mines | Core integrity fell below 20% 1740 | -10/Mines | Destroyed by D-53 Grenadier with Mini Grenade Launcher Last Messages --------------- 01699_ as-69297 destroyed. 01699_ as-91695 destroyed. 01699_ as-31792 destroyed. 01699_ as-09363 destroyed. 01700_ as-82373 destroyed. 01700_ as-37632 destroyed. 01700_ as-54229 destroyed. 01700_ as-89236 destroyed. 01700_ as-01538 destroyed. 01700_ as-07393 destroyed. 01700_ Lgt. Treads destroyed. 01701_ as-57687 destroyed. 01701_ as-57921 destroyed. 01707_ The unstable cave ceiling collapses. 01707_ as-99885 destroyed. 01728_ Assault Rifle destroyed. 01732_ D-53 Grenadier destroyed. 01732_ Switching to secondary target: D-53 Grenadier. 01734_ Assault Rifle destroyed. 01740_ The unstable cave ceiling collapses. Map ----- +----------------------------------------------------+ | | | | | | | | | | | | | | | | | | | | | | | | | | | | | | | | | | | | | | | ?????????????????????????????????????????????????? | | ??????????????????????#######????????????????????? | | ???????????####??????## ##???????????????????? | | ??????###### ##????## ##??????????????????? | | ?????## ####?# ####???????????????? | | ?????# """ ### # ##??????????????? | | ?????# """ @ d #??????????????? | | ?????## """ # ####???????????? | | ??????# ## #???????????? | | ????### #### ### # #???????????? | | ???## %=%#??# ##?## ## # #??????????? | | ???# ##?# #???######### # #??????????? | | #### #?# ##???????????# # ?????????? | | =%[ #?####????????????# # ????????? | | #### ## #?????????????????# # ???????? | | ??## ### #?????????????????# ??????? | | ??# ### #?????????????????# = # | | ??# ## ????????????# = # | | ??# #####?????????? ##? | | ??## ###### #???? ### ##?? | | ???## % ??? ## ! #??###??? | | ????# ""???? ??# ###???????? | | ????# ######## "????? ????## # #?????????? | | ????# #????????? "???????????## #?###?????????? | | ????# #????????????????????????###??????????????? | | ????# #?????????????????????????????????????????? | | ????# #?????????????????????????????????????????? | | ????# #?????????????????????????????????????????? | | ##### #?????????????????????????????????????????? | | #######???????????????????????????????????? | | ##### # #???????????????????????????????????? | +----------------------------------------------------+ Best States ------------- Heat Dissipation 25 Energy Generation 10 Energy Capacity 125 Matter Stores 300 Matter Capacity 300 Sight Range 16 Terrain Scan Density 10 Evasion (%) 40 Recoil Reduction 2 Item Schematics ----------------- None Robot Schematics ------------------ None Fabricated ------------ Nothing Alien Tech Used ----------------- None Achievements -------------- None Challenges ------------ None Game ------ Seed MediumForceScreen Manual? 0 Play Time 00:08:53 Cumulative 98.8 hours Start 2021.08.12 @ 16:52:23 End 2021.08.12 @ 16:58:47 Sessions 1 Manual Loads 0 Difficulty Rogue Special Mode None Game No. 169 Rogue 157 Adventurer 4 Explorer 8 Win Type - Total 7 Types 6/0/0/1/0/0/0/0/0 Lore% 61 Gallery% 78 Achievement% 62 Wizard Run 0 Options --------- ASCII 0 Keyboard 1 Movement Numpad Keybinds 0 Fullscreen 1 Font 18/SmallcapsGlow Map View 76x50 Tactical HUD 1 Map Filters NONE Filters NONE Steam 1 RUN: 304348fe-27ac-4835-acb9-b1bfc3835fde